fUSD/lending_fUSD_20250505
["ID","MTS","AMOUNT","RATE_DAILY","PERIOD"]
[359961490,1746450643940,-456.37527275,0.00019899,2]
[359961491,1746450643949,-450.0,0.00019899,2]
[359961492,1746450643958,-458.29053416,0.00019899,2]
[359961493,1746450643967,-465.58478241,0.00019899,2]
[359961494,1746450643977,-462.41550184,0.00019899,2]
[359961495,1746450643986,-450.0,0.00019899,2]
[359961496,1746450643995,-461.48757921,0.00019899,2]
[359961497,1746450644003,-450.0,0.00019899,2]
[359961498,1746450644013,-450.0,0.00019899,2]
[359961499,1746450644022,-450.0,0.00019899,2]
[359961500,1746450644031,-450.0,0.00019899,2]
[359961501,1746450644040,-461.82247763,0.00019899,2]
[359961502,1746450644049,-458.08302021,0.00019899,2]
[359961503,1746450644058,-450.0,0.00019899,2]
[359961504,1746450644067,-450.0,0.00019899,2]
[359961505,1746450644076,-450.0,0.00019899,2]
[359961506,1746450644085,-469.5541486,0.00019899,2]
[359961507,1746450644095,-450.0,0.00019899,2]
[359961508,1746450644105,-450.0,0.00019899,2]
[359961509,1746450644115,-458.93828106,0.00019899,2]
[359961510,1746450644124,-459.48474369,0.00019899,2]
[359961511,1746450644133,-566.45467809,0.00019899,2]
[359961512,1746450644143,-450.0,0.00019899,2]
[359961513,1746450644151,-466.025579,0.00019899,2]
[359961514,1746450644160,-450.0,0.00019899,2]
[359961515,1746450644171,-462.02997911,0.00019899,2]
[359961516,1746450644180,-458.30486148,0.00019899,2]
[359961517,1746450644191,-458.29545581,0.00019899,2]
[359961518,1746450644200,-450.0,0.00019899,2]
[359961519,1746450644209,-450.0,0.00019899,2]
[359961520,1746450644218,-457.12551117,0.00019899,2]
[359961521,1746450644227,-450.0,0.00019899,2]
[359961522,1746450644238,-450.0,0.00019899,2]
[359961523,1746450644247,-453.23725052,0.00019899,2]
[359961524,1746450644262,-450.0,0.00019899,2]
[359961525,1746450644271,-464.79219225,0.00019899,2]
[359961526,1746450644280,-525.00794871,0.00019899,2]
[359961527,1746450644290,-450.0,0.00019899,2]
[359961528,1746450644299,-466.60691417,0.00019899,2]
[359961529,1746450644310,-468.91223706,0.00019899,2]
[359961530,1746450644321,-455.07225871,0.00019899,2]
[359961531,1746450644330,-468.44883203,0.00019899,2]
[359961532,1746450644340,-5099.29725375,0.00019899,2]
[359961533,1746450644351,-454.56804679,0.00019899,2]
[359961534,1746450644362,-450.0,0.00019899,2]
[359961535,1746450644371,-450.0,0.00019899,2]
[359961536,1746450644381,-452.77360044,0.00019899,2]
[359961537,1746450644390,-450.0,0.00019899,2]
[359961538,1746450644399,-450.0,0.00019899,2]
[359961539,1746450644407,-450.0,0.00019899,2]
[359961540,1746450644416,-459.70486477,0.00019899,2]
[359961541,1746450644430,-450.0,0.00019899,2]
[359961542,1746450644442,-450.0,0.00019899,2]
[359961543,1746450644452,-459.0907838,0.00019899,2]
[359961544,1746450644461,-508.7434677,0.00019899,2]
[359961545,1746450644470,-461.6675902,0.00019899,2]
[359961546,1746450644481,-510.32028494,0.00019899,2]
[359961547,1746450644491,-552.15,0.00019899,2]
[359961548,1746450644500,-450.0,0.00019899,2]
[359961549,1746450644510,-450.0,0.00019899,2]
[359961550,1746450644520,-450.0,0.00019899,2]
[359961551,1746450644529,-450.0,0.00019899,2]
[359961552,1746450644539,-450.0,0.00019899,2]
[359961553,1746450644548,-450.0,0.00019899,2]
[359961554,1746450644558,-469.30239425,0.00019899,2]
[359961555,1746450644567,-466.20876886,0.00019899,2]
[359961556,1746450644577,-463.67267312,0.00019899,2]
[359961557,1746450644586,-450.93532248,0.00019899,2]
[359961558,1746450644595,-450.0,0.00019899,2]
[359961559,1746450644604,-450.0,0.00019899,2]
[359961560,1746450644614,-450.0,0.00019899,2]
[359961561,1746450644623,-450.0,0.00019899,2]
[359961562,1746450644635,-450.0,0.00019899,2]
[359961563,1746450644644,-450.0,0.00019899,2]
[359961564,1746450644653,-450.0,0.00019899,2]
[359961565,1746450644662,-450.0,0.00019899,2]
[359961566,1746450644671,-450.0,0.00019899,2]
[359961567,1746450644682,-461.52968433,0.00019899,2]
[359961568,1746450644691,-465.16253598,0.00019899,2]
[359961569,1746450644701,-450.0,0.00019899,2]
[359961570,1746450644710,-456.1790829,0.00019899,2]
[359961571,1746450644719,-450.0,0.00019899,2]
[359961572,1746450644729,-450.0,0.00019899,2]
[359961573,1746450644738,-450.0,0.00019899,2]
[359961574,1746450644747,-450.0,0.00019899,2]
[359961575,1746450644756,-463.90501597,0.00019899,2]
[359961576,1746450644766,-496.72202146,0.00019899,2]
[359961577,1746450644775,-539.41910646,0.00019899,2]
[359961578,1746450644784,-459.13062492,0.00019899,2]
[359961579,1746450644793,-472.9973273,0.00019899,2]
[359961580,1746450644802,-450.0,0.00019899,2]
[359961581,1746450644811,-450.0,0.00019899,2]
[359961582,1746450644821,-475.73610853,0.00019899,2]
[359961583,1746450644830,-480.24018872,0.00019899,2]
[359961584,1746450644839,-450.0,0.00019899,2]
[359961585,1746450644849,-450.0,0.00019899,2]
[359961586,1746450644858,-456.11379525,0.00019899,2]
[359961587,1746450644868,-456.8803381,0.00019899,2]
[359961588,1746450644877,-450.0,0.00019899,2]
[359961589,1746450644886,-450.0,0.00019899,2]
[359961590,1746450644896,-459.8810777,0.00019899,2]
[359961591,1746450644905,-450.0,0.00019899,2]
[359961592,1746450644915,-500.0,0.00019899,2]
[359961593,1746450644924,-482.1082104,0.00019899,2]
[359961594,1746450644934,-450.0,0.00019899,2]
[359961595,1746450644943,-450.0,0.00019899,2]
[359961596,1746450644952,-477.99814962,0.00019899,2]
[359961597,1746450644961,-465.35533004,0.00019899,2]
[359961598,1746450644971,-525.59027572,0.00019899,2]
[359961599,1746450644980,-450.0,0.00019899,2]
[359961600,1746450644990,-450.0,0.00019899,2]
[359961601,1746450645000,-450.0,0.00019899,2]
[359961602,1746450645009,-450.0,0.00019899,2]
[359961603,1746450645019,-458.56547933,0.00019899,2]
[359961604,1746450645028,-518.56061838,0.00019899,2]
[359961605,1746450645038,-459.03964489,0.00019899,2]
[359961606,1746450645047,-558.6486388,0.00019899,2]
[359961607,1746450645056,-450.0,0.00019899,2]
[359961608,1746450645065,-521.53963616,0.00019899,2]
[359961609,1746450645074,-461.10912373,0.00019899,2]
[359961610,1746450645084,-450.0,0.00019899,2]
[359961611,1746450645094,-4144.47168646,0.000199,2]
[359961612,1746450645104,-5499.40015048,0.000199,2]
[359961613,1746450645114,-1000.0,0.000199,3]
[359961614,1746450645123,-600.0,0.000199,3]
[359961615,1746450645132,-1331.1686656,0.000199,2]
[359961616,1746450645142,-12500.0,0.000199,2]
[359961617,1746450645152,-168.12360687,0.000199,2]
[359961618,1746450645162,-586.56401142,0.000199,2]
[359961619,1746450645171,-299.82471199,0.000199,2]
[359961620,1746450645181,-162.42846686,0.000199,2]
[359961621,1746450645191,-268565.08681086,0.00019949,2]
[359961623,1746450645452,-490.30116499,0.00019949,2]
[359961624,1746450645464,-412.34341,0.00019949,2]
[359961625,1746450645564,-1177.25650396,0.00019949,2]
[359961626,1746450645576,-463.125,0.00019949,2]
[359961627,1746450645696,-919.38489794,0.000199,2]
[359961628,1746450645715,-928.40309998,0.000199,2]
[359961629,1746450645727,-4899.75366782,0.000199,2]
[359961630,1746450645738,-5875.84142386,0.000199,2]
[359961631,1746450645749,-2570.26140249,0.000199,2]
[359961632,1746450645760,-3405.55913296,0.000199,2]
[359961633,1746450645771,-1863.00486732,0.000199,2]
[359961634,1746450645782,-1711.149975,0.000199,2]
[359961635,1746450645793,-4361.0,0.000199,2]
[359961636,1746450645804,-5705.82629334,0.000199,2]
[359961637,1746450645814,-13273.44161025,0.00019949,2]
[359961638,1746450645859,-299.99,0.00019949,2]
[359961639,1746450645871,-368.91631683,0.00019949,2]
[359961644,1746450678240,23900.0,0.00018985,2]
[359961645,1746450739822,160.0,0.0003,32]
[359961646,1746450749351,1200.57,0.00018974,2]
[359961648,1746450925490,500.0,0.00027945,30]
[359961649,1746450925773,500.0,0.00029315,35]
[359961650,1746451032656,1000.0,0.00018878,2]
[359961651,1746451039172,293.0,0.0003,32]
[359961652,1746451056544,991.53,0.00016955,2]
[359961653,1746451056783,991.53,0.00019219,2]
[359961654,1746451153283,200.0,0.00018879,2]
[359961655,1746451175228,156.53,0.00016712,2]
[359961656,1746451235381,166.02,0.00019429,2]
[359961657,1746451248211,1198.83,0.00018863,2]
[359961658,1746451261710,1500.57,0.00018863,2]
[359961659,1746451307463,167.99,0.00015091,2]
[359961660,1746451355976,250.0,0.00017,2]
[359961661,1746451356912,300.0,0.00019,2]
[359961662,1746451448030,7173.730108,7.945e-05,2]
[359961663,1746451510841,7209.64506717,0.000154,2]
[359961664,1746451528339,2528.73903477,0.00011,2]
[359961665,1746451536715,2446.38051852,9e-05,2]
[359961666,1746451543082,75457.73808683,0.00025,120]
[359961667,1746451554959,10232.45838602,6.94e-05,2]
[359961670,1746451562824,11632.30153885,8e-05,2]
[359961671,1746451568031,250.0,0.0001885,2]
[359961697,1746451765784,205.87,0.00018854,2]
[359961698,1746451766014,205.87,0.00018948,2]
[359961699,1746451766228,5874.45,0.00018854,2]
[359961708,1746451797724,163.42,0.00018854,2]
[359961710,1746451804867,1171.73,0.00019,2]
[359961711,1746451806560,1171.73,0.00019,2]
[359961712,1746451808354,1171.73,0.00019,2]
[359961713,1746451812067,1171.73,0.00019,2]
[359961714,1746451813866,1171.73,0.00019,2]
[359961722,1746451831743,-170.7393119,0.00019595,2]
[359961723,1746451831753,-200.0,0.000196,2]
[359961724,1746451831762,-630.48072489,0.0001969,2]
[359961725,1746451831771,-269.16895991,0.00019699,2]
[359961726,1746451831782,-200.0,0.000197,2]
[359961727,1746451831792,-200.0,0.00019749,2]
[359961728,1746451831803,-207.4,0.00019786,2]
[359961729,1746451831819,-1730.50976589,0.00019797,2]
[359961730,1746451831830,-1200.0,0.00019797,2]
[359961731,1746451831842,-938.83042814,0.00019798,2]
[359961732,1746451831854,-168.12360687,0.00019798,2]
[359961733,1746451831867,-381.7058,0.00019798,2]
[359961734,1746451831877,-425.7787,0.00019798,2]
[359961735,1746451831887,-458.421,0.00019798,2]
[359961736,1746451831897,-150.5329356,0.00019799,2]
[359961737,1746451831907,-169.50406532,0.00019799,2]
[359961738,1746451831916,-1730.50976583,0.00019807,2]
[359961739,1746451831926,-938.83042809,0.00019807,2]
[359961740,1746451831936,-1730.50976583,0.00019816,2]
[359961741,1746451831946,-938.83042809,0.00019817,2]
[359961742,1746451831955,-169.50406532,0.00019824,2]
[359961743,1746451831966,-1730.50976583,0.00019826,2]
[359961744,1746451831976,-938.83042809,0.00019826,2]
[359961745,1746451831986,-1730.50976583,0.00019835,2]
[359961746,1746451831996,-938.83042809,0.00019836,2]
[359961747,1746451832005,-985.89814072,0.0001984,2]
[359961748,1746451832015,-1730.50976583,0.00019845,2]
[359961749,1746451832024,-938.83042809,0.00019845,2]
[359961750,1746451832033,-169.50406532,0.0001985,2]
[359961751,1746451832042,-1730.50976583,0.00019854,2]
[359961752,1746451832052,-938.83042809,0.00019855,2]
[359961753,1746451832061,-1730.50976583,0.00019864,2]
[359961754,1746451832070,-938.83042809,0.00019864,2]
[359961755,1746451832080,-3036.63524708,0.0001987,2]
[359961756,1746451832089,-500.0,0.00019873,2]
[359961757,1746451832099,-500.0,0.00019873,2]
[359961759,1746451832108,-500.0,0.00019873,2]
[359961761,1746451832118,-1730.50976583,0.00019873,2]
[359961763,1746451832127,-938.83042809,0.00019874,2]
[359961765,1746451832136,-169.50406532,0.00019875,2]
[359961767,1746451832145,-236.03245057,0.00019877,2]
[359961769,1746451832155,-195.52133714,0.00019879,2]
[359961771,1746451832164,-299.82471199,0.0001988,2]
[359961773,1746451832173,-1730.50976583,0.00019883,2]
[359961775,1746451832183,-938.83042809,0.00019883,2]
[359961777,1746451832193,-1751.59,0.00019888,2]
[359961779,1746451832202,-8873.61441404,0.00019889,2]
[359961781,1746451832214,-2085.47283764,0.00019889,2]
[359961783,1746451832223,-195.52133714,0.0001989,2]
[359961785,1746451832232,-4719.73730089,0.00019891,2]
[359961788,1746451832248,-1382.44000004,0.00019891,2]
[359961935,1746451839863,-2149.99999,0.00019891,2]
[359961937,1746451839877,-4247.82270907,0.00019891,2]
[359961939,1746451839887,-1300.004,0.00019894,2]
[359961941,1746451839897,-4086.635,0.00019894,2]
[359961943,1746451839907,-6816.502,0.00019894,2]
[359961945,1746451839916,-925.0,0.00019894,2]
[359961947,1746451839926,-878.0,0.00019894,2]
[359961949,1746451839935,-450.0,0.00019896,2]
[359961952,1746451839946,-450.0,0.00019896,2]
[359961953,1746451839955,-566.5,0.00019896,2]
[359961956,1746451839965,-450.0,0.00019896,2]
[359961957,1746451839975,-450.0,0.00019896,2]
[359961959,1746451839984,-507.4309453,0.00019896,2]
[359961961,1746451839993,-450.0,0.00019896,2]
[359961963,1746451840003,-450.0,0.00019896,2]
[359961965,1746451840012,-450.0,0.00019896,2]
[359961967,1746451840021,-450.0,0.00019896,2]
[359961969,1746451840031,-450.0,0.00019896,2]
[359961971,1746451840040,-450.0,0.00019896,2]
[359961974,1746451840050,-450.0,0.00019896,2]
[359961976,1746451840060,-450.0,0.00019896,2]
[359961978,1746451840069,-450.0,0.00019896,2]
[359961980,1746451840078,-450.0,0.00019896,2]
[359961981,1746451840087,-450.0,0.00019896,2]
[359961984,1746451840096,-450.0,0.00019896,2]
[359961986,1746451840106,-450.0,0.00019896,2]
[359961988,1746451840115,-450.0,0.00019896,2]
[359961989,1746451840124,-450.0,0.00019896,2]
[359961992,1746451840134,-450.0,0.00019896,2]
[359961994,1746451840143,-557.17,0.00019896,2]
[359961995,1746451840151,-450.0,0.00019896,2]
[359961998,1746451840162,-450.0,0.00019896,2]
[359962000,1746451840172,-450.0,0.00019896,2]
[359962002,1746451840181,-450.0,0.00019896,2]
[359962004,1746451840191,-450.0,0.00019896,2]
[359962006,1746451840203,-450.0,0.00019896,2]
[359962008,1746451840212,-3893.73,0.00019896,2]
[359962009,1746451840221,-450.0,0.00019896,2]
[359962011,1746451840230,-186.108635,0.00019896,2]
[359962013,1746451840240,-450.0,0.00019896,2]
[359962015,1746451840249,-961.4,0.00019896,2]
[359962017,1746451840258,-450.0,0.00019896,2]
[359962019,1746451840267,-450.0,0.00019896,2]
[359962021,1746451840277,-450.0,0.00019896,2]
[359962023,1746451840287,-5356.25,0.00019896,2]
[359962025,1746451840296,-450.0,0.00019896,2]
[359962027,1746451840306,-153.360871,0.00019896,2]
[359962029,1746451840315,-450.0,0.00019896,2]
[359962031,1746451840324,-450.0,0.00019896,2]
[359962033,1746451840334,-450.0,0.00019897,2]
[359962036,1746451840343,-450.0,0.00019897,2]
[359962038,1746451840353,-282.56,0.00019897,2]
[359962040,1746451840362,-450.0,0.00019897,2]
[359962041,1746451840372,-452.51893086,0.00019897,2]
[359962043,1746451840381,-450.0,0.00019897,2]
[359962045,1746451840390,-450.0,0.00019897,2]
[359962047,1746451840399,-450.0,0.00019897,2]
[359962049,1746451840409,-450.0,0.00019897,2]
[359962051,1746451840418,-450.0,0.00019897,2]
[359962053,1746451840427,-450.0,0.00019897,2]
[359962055,1746451840437,-450.0,0.00019897,2]
[359962057,1746451840449,-450.0,0.00019897,2]
[359962059,1746451840458,-450.0,0.00019897,2]
[359962061,1746451840467,-450.0,0.00019897,2]
[359962063,1746451840476,-450.0,0.00019897,2]
[359962065,1746451840486,-458.26408814,0.00019897,2]
[359962067,1746451840496,-450.0,0.00019897,2]
[359962069,1746451840505,-450.0,0.00019897,2]
[359962071,1746451840515,-450.0,0.00019897,2]
[359962073,1746451840524,-450.0,0.00019897,2]
[359962075,1746451840533,-450.0,0.00019897,2]
[359962077,1746451840543,-450.0,0.00019897,2]
[359962080,1746451840553,-450.0,0.00019897,2]
[359962083,1746451840562,-450.0,0.00019897,2]
[359962085,1746451840572,-587.27,0.00019897,2]
[359962087,1746451840581,-450.0,0.00019897,2]
[359962089,1746451840591,-450.0,0.00019897,2]
[359962091,1746451840601,-450.0,0.00019897,2]
[359962093,1746451840611,-450.0,0.00019897,2]
[359962095,1746451840621,-450.0,0.00019897,2]
[359962097,1746451840630,-450.0,0.00019897,2]
[359962099,1746451840640,-450.0,0.00019897,2]
[359962101,1746451840650,-465.58248752,0.00019897,2]
[359962103,1746451840660,-450.0,0.00019897,2]
[359962105,1746451840670,-450.0,0.00019897,2]
[359962107,1746451840680,-450.0,0.00019897,2]
[359962109,1746451840689,-450.0,0.00019897,2]
[359962111,1746451840705,-529.35152763,0.00019897,2]
[359962113,1746451840715,-450.0,0.00019897,2]
[359962115,1746451840724,-450.0,0.00019897,2]
[359962117,1746451840733,-450.0,0.00019897,2]
[359962119,1746451840742,-450.0,0.00019897,2]
[359962121,1746451840751,-466.91,0.00019897,2]
[359962123,1746451840762,-450.0,0.00019897,2]
[359962125,1746451840771,-482.85465418,0.00019897,2]
[359962127,1746451840780,-450.0,0.00019897,2]
[359962129,1746451840789,-569.09377469,0.00019897,2]
[359962132,1746451840799,-450.0,0.00019897,2]
[359962133,1746451840810,-450.0,0.00019897,2]
[359962135,1746451840821,-530.0,0.00019897,2]
[359962137,1746451840830,-450.0,0.00019897,2]
[359962139,1746451840840,-450.0,0.00019897,2]
[359962141,1746451840849,-450.0,0.00019897,2]
[359962143,1746451840860,-450.0,0.00019897,2]
[359962145,1746451840870,-450.0,0.00019897,2]
[359962147,1746451840879,-450.0,0.00019897,2]
[359962150,1746451840889,-450.0,0.00019897,2]
[359962152,1746451840899,-450.0,0.00019897,2]
[359962153,1746451840909,-450.0,0.00019897,2]
[359962155,1746451840919,-450.0,0.00019897,2]
[359962157,1746451840928,-450.0,0.00019897,2]
[359962158,1746451840938,-450.0,0.00019897,2]
[359962159,1746451840952,-450.0,0.00019897,2]
[359962160,1746451840962,-450.0,0.00019897,2]
[359962161,1746451840972,-450.0,0.00019897,2]
[359962162,1746451840982,-450.0,0.00019897,2]
[359962163,1746451840991,-450.0,0.00019897,2]
[359962164,1746451841001,-450.0,0.00019897,2]
[359962165,1746451841011,-450.0,0.00019897,2]
[359962166,1746451841020,-450.0,0.00019897,2]
[359962167,1746451841030,-450.0,0.00019897,2]
[359962169,1746451841039,-450.0,0.00019897,2]
[359962171,1746451841048,-450.0,0.00019897,2]
[359962173,1746451841057,-450.0,0.00019897,2]
[359962175,1746451841066,-450.0,0.00019897,2]
[359962177,1746451841075,-450.0,0.00019897,2]
[359962179,1746451841085,-450.0,0.00019897,2]
[359962181,1746451841094,-450.0,0.00019897,2]
[359962183,1746451841103,-450.0,0.00019897,2]
[359962185,1746451841113,-450.0,0.00019897,2]
[359962187,1746451841122,-450.0,0.00019897,2]
[359962189,1746451841131,-450.0,0.00019897,2]
[359962191,1746451841140,-450.0,0.00019897,2]
[359962193,1746451841149,-450.0,0.00019897,2]
[359962195,1746451841159,-450.0,0.00019897,2]
[359962197,1746451841168,-457.07530858,0.00019897,2]
[359962199,1746451841178,-457.63296035,0.00019897,2]
[359962201,1746451841187,-470.38879763,0.00019897,2]
[359962203,1746451841200,-450.0,0.00019897,2]
[359962205,1746451841209,-457.57590265,0.00019897,2]
[359962207,1746451841219,-450.0,0.00019897,2]
[359962209,1746451841228,-450.0,0.00019897,2]
[359962211,1746451841238,-450.0,0.00019897,2]
[359962213,1746451841247,-450.0,0.00019897,2]
[359962215,1746451841256,-497.67,0.00019897,2]
[359962217,1746451841265,-450.0,0.00019897,2]
[359962219,1746451841274,-450.0,0.00019897,2]
[359962221,1746451841283,-450.0,0.00019897,2]
[359962223,1746451841292,-450.0,0.00019897,2]
[359962225,1746451841301,-450.0,0.00019897,2]
[359962227,1746451841310,-450.0,0.00019897,2]
[359962229,1746451841319,-450.0,0.00019897,2]
[359962231,1746451841328,-450.0,0.00019897,2]
[359962233,1746451841338,-450.0,0.00019897,2]
[359962235,1746451841347,-450.0,0.00019897,2]
[359962237,1746451841357,-450.0,0.00019897,2]
[359962239,1746451841366,-178.47559223,0.00019897,2]
[359962241,1746451841376,-450.0,0.00019897,2]
[359962243,1746451841385,-450.000001,0.00019897,2]
[359962245,1746451841394,-513.01704804,0.00019897,2]
[359962247,1746451841404,-450.0,0.00019897,2]
[359962249,1746451841414,-450.0,0.00019897,2]
[359962251,1746451841423,-3307.17,0.00019897,2]
[359962253,1746451841432,-450.0,0.00019897,2]
[359962255,1746451841441,-450.0,0.00019897,2]
[359962257,1746451841453,-450.0,0.00019897,2]
[359962259,1746451841462,-450.0,0.00019897,2]
[359962261,1746451841471,-450.0,0.00019897,2]
[359962263,1746451841481,-450.0,0.00019897,2]
[359962265,1746451841490,-455.73773832,0.00019897,2]
[359962267,1746451841499,-450.0,0.00019897,2]
[359962269,1746451841508,-450.0,0.00019897,2]
[359962271,1746451841517,-450.0,0.00019897,2]
[359962273,1746451841527,-450.0,0.00019897,2]
[359962275,1746451841537,-450.0,0.00019897,2]
[359962277,1746451841546,-450.0,0.00019897,2]
[359962279,1746451841556,-450.0,0.00019897,2]
[359962281,1746451841565,-450.0,0.00019897,2]
[359962283,1746451841576,-450.0,0.00019897,2]
[359962285,1746451841585,-450.0,0.00019897,2]
[359962287,1746451841595,-450.0,0.00019897,2]
[359962289,1746451841605,-51730.78,0.00019897,2]
[359962291,1746451841615,-450.0,0.00019897,2]
[359962293,1746451841624,-450.0,0.00019897,2]
[359962295,1746451841633,-450.0,0.00019897,2]
[359962297,1746451841642,-450.0,0.00019897,2]
[359962299,1746451841652,-450.0,0.00019897,2]
[359962301,1746451841661,-450.0,0.00019897,2]
[359962303,1746451841671,-500.0,0.00019897,2]
[359962305,1746451841681,-450.0,0.00019897,2]
[359962307,1746451841690,-743.23,0.00019897,2]
[359962309,1746451841701,-450.0,0.00019897,2]
[359962311,1746451841710,-450.0,0.00019897,2]
[359962313,1746451841720,-450.0,0.00019897,2]
[359962315,1746451841729,-450.0,0.00019897,2]
[359962317,1746451841739,-509.4,0.00019897,2]
[359962319,1746451841748,-372.76231968,0.00019897,2]
[359962321,1746451841758,-450.0,0.00019897,2]
[359962323,1746451841767,-450.0,0.00019897,2]
[359962325,1746451841776,-450.0,0.00019897,2]
[359962327,1746451841786,-450.0,0.00019897,2]
[359962328,1746451841795,-450.0,0.00019897,2]
[359962330,1746451841805,-450.0,0.00019897,2]
[359962332,1746451841819,-450.0,0.00019897,2]
[359962335,1746451841828,-450.0,0.00019897,2]
[359962337,1746451841838,-723.5,0.00019897,2]
[359962338,1746451841847,-500.0,0.00019897,2]
[359962340,1746451841858,-450.0,0.00019897,2]
[359962343,1746451841868,-450.0,0.00019897,2]
[359962344,1746451841877,-500.0,0.00019897,2]
[359962347,1746451841888,-450.0,0.00019897,2]
[359962348,1746451841897,-450.0,0.00019897,2]
[359962350,1746451841907,-450.0,0.00019897,2]
[359962353,1746451841917,-450.0,0.00019897,2]
[359962354,1746451841926,-450.0,0.00019897,2]
[359962356,1746451841935,-450.0,0.00019897,2]
[359962358,1746451841946,-593.71,0.00019897,2]
[359962361,1746451841956,-450.0,0.00019897,2]
[359962362,1746451841966,-450.0,0.00019897,2]
[359962364,1746451841975,-450.0,0.00019897,2]
[359962366,1746451841985,-725.8,0.00019897,2]
[359962368,1746451841995,-728.36,0.00019897,2]
[359962370,1746451842004,-450.0,0.00019897,2]
[359962372,1746451842013,-500.0,0.00019897,2]
[359962374,1746451842023,-597.91,0.00019897,2]
[359962376,1746451842032,-450.0,0.00019897,2]
[359962378,1746451842042,-450.0,0.00019897,2]
[359962380,1746451842051,-581.76,0.00019897,2]
[359962382,1746451842060,-450.0,0.00019897,2]
[359962384,1746451842071,-450.0,0.00019897,2]
[359962386,1746451842080,-1671.41,0.00019897,2]
[359962388,1746451842089,-450.0,0.00019897,2]
[359962390,1746451842098,-450.0,0.00019897,2]
[359962392,1746451842107,-638.88,0.00019897,2]
[359962394,1746451842116,-450.0,0.00019897,2]
[359962396,1746451842125,-450.0,0.00019897,2]
[359962398,1746451842134,-450.0,0.00019897,2]
[359962400,1746451842143,-832.9,0.00019897,2]
[359962402,1746451842152,-450.0,0.00019897,2]
[359962404,1746451842162,-450.0,0.00019897,2]
[359962406,1746451842171,-450.0,0.00019897,2]
[359962408,1746451842180,-452.05,0.00019897,2]
[359962410,1746451842189,-450.0,0.00019897,2]
[359962412,1746451842200,-1091.75,0.00019897,2]
[359962414,1746451842210,-450.0,0.00019897,2]
[359962416,1746451842219,-450.0,0.00019897,2]
[359962418,1746451842228,-450.0,0.00019897,2]
[359962420,1746451842236,-450.0,0.00019897,2]
[359962422,1746451842246,-450.0,0.00019897,2]
[359962424,1746451842255,-20055.4,0.00019897,2]
[359962426,1746451842264,-455.91641373,0.00019897,2]
[359962428,1746451842274,-450.0,0.00019897,2]
[359962430,1746451842282,-450.0,0.00019897,2]
[359962432,1746451842291,-450.0,0.00019897,2]
[359962434,1746451842301,-450.0,0.00019897,2]
[359962436,1746451842310,-592.83775424,0.00019897,2]
[359962438,1746451842320,-450.0,0.00019897,2]
[359962440,1746451842329,-372.56499967,0.00019897,2]
[359962442,1746451842339,-450.0,0.00019897,2]
[359962444,1746451842348,-470.0,0.00019897,2]
[359962446,1746451842357,-453.23725052,0.00019898,2]
[359962448,1746451842367,-450.0,0.00019898,2]
[359962450,1746451842376,-450.0,0.00019898,2]
[359962452,1746451842386,-450.0,0.00019898,2]
[359962454,1746451842395,-450.0,0.00019898,2]
[359962456,1746451842404,-450.0,0.00019898,2]